[Event "FIDE Open World Rapid 2024"]
[Site "New York"]
[Date "2024.12.27"]
[Round "6.32"]
[White "George, Kevin"]
[Black "Lou, Yiping"]
[Result "1/2-1/2"]
[ECO "B41"]
[WhiteElo "2270"]
[BlackElo "2459"]
[Annotator "ChessBase"]
[PlyCount "104"]
[EventDate "2024.12.14"]
[EventType "swiss"]
[EventCountry "USA"]
[SourceTitle "playchess.com"]
[Source "ChessBase"]
[SourceQuality "1"]
[TimeControl "900+10"]

1. e4 {[%emt 0:00:02]} c5 {[%emt 0:00:48]} 2. Nf3 {[%emt 0:00:02]} e6 {[%emt 0:00:01]} 3. d4 {[%emt 0:00:07]} cxd4 {[%emt 0:00:02]} 4. Nxd4 {[%emt 0:00:02]} a6 {[%emt 0:00:00]} 5. c4 {[%emt 0:00:10]} Nf6 {[%emt 0:00:05]} 6. Nc3 {[%emt 0:00:03]} Bb4 {[%emt 0:00:02]} 7. Qd3 {[%emt 0:00:11]} d6 {[%emt 0:00:17]} 8. Nc2 {[%emt 0:00:43]} Bxc3+ {[%emt 0:00:10]} 9. bxc3 {[%emt 0:01:15]} O-O {[%emt 0:00:08]} 10. Ba3 {[%emt 0:00:31]} Re8 {[%emt 0:00:02]} 11. Be2 {[%emt 0:00:33]} d5 {[%emt 0:01:08]} 12. exd5 {[%emt 0:01:31]} exd5 {[%emt 0:00:04]} 13. Ne3 {[%emt 0:00:03]} dxc4 {[%emt 0:03:03]} 14. Qxd8 {[%emt 0:00:17]} Rxd8 {[%emt 0:00:01]} 15. Nxc4 {[%emt 0:00:47]} Nc6 {[%emt 0:00:10]} 16. Nb6 {[%emt 0:01:01]} Rb8 {[%emt 0:00:02]} 17. O-O {[%emt 0:00:07]} Be6 {[%emt 0:01:20]} 18. Rfd1 {[%emt 0:03:25]} Ne4 {[%emt 0:00:47]} 19. Na4 {[%emt 0:00:43]} Rxd1+ {[%emt 0:03:46]} 20. Bxd1 {[%emt 0:00:19]} Rd8 {[%emt 0:02:27]} 21. Bf3 {[%emt 0:02:26]} Nd2 {[%emt 0:00:00]} 22. Bxc6 {[%emt 0:00:50]} bxc6 {[%emt 0:00:00]} 23. Nc5 {[%emt 0:00:23]} Nc4 {[%emt 0:00:00]} 24. Nxe6 {[%emt 0:01:34]} fxe6 {[%emt 0:00:00]} 25. Bc5 {[%emt 0:00:02]} Rd2 {[%emt 0:00:00]} 26. h3 {[%emt 0:00:34]} Rd5 {[%emt 0:01:51]} 27. Ba7 {[%emt 0:00:09]} Kf7 {[%emt 0:01:15]} 28. Rb1 {[%emt 0:00:13]} Rb5 {[%emt 0:00:02]} 29. Rb4 {[%emt 0:00:28]} Rxb4 {[%emt 0:00:44]} 30. cxb4 {[%emt 0:00:03]} e5 {[%emt 0:00:02]} 31. Kf1 {[%emt 0:00:10]} Ke6 {[%emt 0:00:07]} 32. Ke2 {[%emt 0:00:01]} Kd5 {[%emt 0:00:13]} 33. Kd3 {[%emt 0:00:04]} e4+ {[%emt 0:00:16]} 34. Kc3 {[%emt 0:00:11]} Nd6 {[%emt 0:00:11]} 35. a4 {[%emt 0:00:16]} Nf5 {[%emt 0:00:18]} 36. Bc5 {[%emt 0:00:49]} Nh4 {[%emt 0:00:06]} 37. g3 {[%emt 0:00:06]} Nf3 {[%emt 0:00:12]} 38. Bf8 {[%emt 0:00:25]} g6 {[%emt 0:00:13]} 39. Bh6 {[%emt 0:00:14]} Ng1 {[%emt 0:00:11]} 40. h4 {[%emt 0:00:03]} Nf3 {[%emt 0:00:02]} 41. Be3 {[%emt 0:00:16]} Ne5 {[%emt 0:00:17]} 42. Ba7 {[%emt 0:00:29]} h5 {[%emt 0:00:24]} 43. Bb6 {[%emt 0:00:12]} Nf3 {[%emt 0:00:44]} 44. Be3 {[%emt 0:00:04]} Ne1 {[%emt 0:00:09]} 45. Ba7 {[%emt 0:00:11]} Nf3 {[%emt 0:00:06]} 46. Be3 {[%emt 0:00:02]} Ne5 {[%emt 0:00:16]} 47. Ba7 {[%emt 0:00:06]} Ng4 {[%emt 0:00:10]} 48. Bb6 {[%emt 0:00:03]} Nh6 {[%emt 0:00:03]} 49. Ba7 {[%emt 0:00:26]} Nf5 {[%emt 0:00:02]} 50. Bb6 {[%emt 0:00:03]} Ng7 {[%emt 0:00:32]} 51. Ba7 {[%emt 0:00:09]} Ne6 {[%emt 0:00:02]} 52. Be3 {[%emt 0:00:05]} Ng7 {[%emt 0:00:18]} 1/2-1/2

[Event "FIDE Open World Rapid 2024"]
[Site "New York"]
[Date "2024.12.27"]
[Round "6.33"]
[White "Tari, Aryan"]
[Black "Safarli, Eltaj"]
[Result "1-0"]
[ECO "D02"]
[WhiteElo "2629"]
[BlackElo "2610"]
[Annotator "ChessBase"]
[PlyCount "67"]
[EventDate "2024.12.14"]
[EventType "swiss"]
[EventCountry "USA"]
[SourceTitle "playchess.com"]
[Source "ChessBase"]
[SourceQuality "1"]
[TimeControl "900+10"]

1. d4 {[%emt 0:00:02]} Nf6 {[%emt 0:00:03]} 2. Nf3 {[%emt 0:00:02]} d5 {[%emt 0:00:07]} 3. Bf4 {[%emt 0:00:03]} c5 {[%emt 0:00:06]} 4. e3 {[%emt 0:00:03]} Nc6 {[%emt 0:00:12]} 5. Nbd2 {[%emt 0:00:03]} Bg4 {[%emt 0:00:27]} 6. c3 {[%emt 0:00:10]} e6 {[%emt 0:00:03]} 7. Qb3 {[%emt 0:00:05]} Qc8 {[%emt 0:00:03]} 8. h3 {[%emt 0:00:04]} Bxf3 {[%emt 0:00:07]} 9. Nxf3 {[%emt 0:00:03]} Be7 {[%emt 0:00:02]} 10. dxc5 {[%emt 0:00:49]} O-O {[%emt 0:00:35]} 11. Be2 {[%emt 0:00:08]} Bxc5 {[%emt 0:00:33]} 12. O-O {[%emt 0:00:04]} a6 {[%emt 0:00:24]} 13. Rfd1 {[%emt 0:02:06]} h6 {[%emt 0:01:02]} 14. Ne5 {[%emt 0:03:46]} Rd8 {[%emt 0:03:36]} 15. Nxc6 {[%emt 0:00:14]} Qxc6 {[%emt 0:01:30]} 16. c4 {[%emt 0:00:03]} Qb6 {[%emt 0:02:04]} 17. Bf3 {[%emt 0:01:47]} Qxb3 {[%emt 0:00:21]} 18. axb3 {[%emt 0:00:01]} Bd6 {[%emt 0:02:15]} 19. Bxd6 {[%emt 0:00:21]} Rxd6 {[%emt 0:00:01]} 20. e4 {[%emt 0:00:02]} Rb6 {[%emt 0:00:28]} 21. cxd5 {[%emt 0:00:07]} exd5 {[%emt 0:00:03]} 22. e5 {[%emt 0:00:33]} Ne4 {[%emt 0:00:06]} 23. Rxd5 {[%emt 0:01:22]} Ng5 {[%emt 0:00:01]} 24. Bd1 {[%emt 0:00:14]} Rc8 {[%emt 0:01:00]} 25. f4 {[%emt 0:00:01]} Ne6 {[%emt 0:00:01]} 26. f5 {[%emt 0:01:16]} Rc5 {[%emt 0:01:08]} 27. Rd7 {[%emt 0:02:29]} Nf4 {[%emt 0:00:08]} 28. Ra4 {[%emt 0:00:22]} Rd5 {[%emt 0:01:54]} 29. Rxd5 {[%emt 0:00:11]} Nxd5 {[%emt 0:00:01]} 30. Rd4 {[%emt 0:00:10]} Ne7 {[%emt 0:00:01]} 31. Rd8+ {[%emt 0:00:51]} Kh7 {[%emt 0:00:00]} 32. Bc2 {[%emt 0:00:01]} Nc6 {[%emt 0:01:00]} 33. f6+ {[%emt 0:00:04]} g6 {[%emt 0:00:01]} 34. e6 {[%emt 0:00:12]} 1-0

[Event "FIDE Open World Rapid 2024"]
[Site "New York"]
[Date "2024.12.27"]
[Round "6.33"]
[White "Rasulov, Vugar"]
[Black "Schnaider, Ilan"]
[Result "0-1"]
[ECO "C50"]
[WhiteElo "2504"]
[BlackElo "2392"]
[Annotator "ChessBase"]
[PlyCount "98"]
[EventDate "2024.12.14"]
[EventType "swiss"]
[EventCountry "USA"]
[SourceTitle "playchess.com"]
[Source "ChessBase"]
[SourceQuality "1"]
[TimeControl "900+10"]

1. e4 {[%emt 0:00:03]} e5 {[%emt 0:00:22]} 2. Nf3 {[%emt 0:00:04]} Nc6 {[%emt 0:00:07]} 3. Bc4 {[%emt 0:00:03]} d6 {[%emt 0:00:13]} 4. c3 {[%emt 0:00:23]} f5 {[%emt 0:00:13]} 5. d3 {[%emt 0:00:25]} f4 {[%emt 0:00:03]} 6. g3 {[%emt 0:00:23]} Qf6 {[%emt 0:03:44]} 7. gxf4 {[%emt 0:00:15]} exf4 {[%emt 0:00:01]} 8. Rg1 {[%emt 0:00:12]} Nh6 {[%emt 0:01:15]} 9. d4 {[%emt 0:01:10]} Bd7 {[%emt 0:02:26]} 10. Qd2 {[%emt 0:00:39]} Bg4 {[%emt 0:00:35]} 11. Be2 {[%emt 0:00:08]} Bxf3 {[%emt 0:02:39]} 12. Bxf3 {[%emt 0:00:02]} g5 {[%emt 0:00:09]} 13. h4 {[%emt 0:00:02]} g4 {[%emt 0:00:13]} 14. Bxg4 {[%emt 0:00:09]} Nxg4 {[%emt 0:00:03]} 15. Rxg4 {[%emt 0:00:02]} Bh6 {[%emt 0:00:01]} 16. f3 {[%emt 0:02:58]} O-O-O {[%emt 0:00:13]} 17. Qg2 {[%emt 0:00:25]} Rde8 {[%emt 0:01:13]} 18. Kd1 {[%emt 0:00:15]} Qf7 {[%emt 0:02:04]} 19. Nd2 {[%emt 0:01:15]} Rhg8 {[%emt 0:00:01]} 20. Kc2 {[%emt 0:00:15]} d5 {[%emt 0:00:08]} 21. b3 {[%emt 0:00:41]} Kb8 {[%emt 0:00:55]} 22. e5 {[%emt 0:00:48]} Ne7 {[%emt 0:00:47]} 23. Nf1 {[%emt 0:00:59]} Nf5 {[%emt 0:00:48]} 24. Qh3 {[%emt 0:01:00]} c5 {[%emt 0:00:12]} 25. dxc5 {[%emt 0:00:01]} d4 {[%emt 0:00:14]} 26. Bd2 {[%emt 0:00:22]} Ne3+ {[%emt 0:00:09]} 27. Kb2 {[%emt 0:00:57]} Nxg4 {[%emt 0:00:14]} 28. fxg4 {[%emt 0:00:02]} dxc3+ {[%emt 0:00:27]} 29. Bxc3 {[%emt 0:00:06]} Bg7 {[%emt 0:00:06]} 30. Qd3 {[%emt 0:01:06]} Qg6 {[%emt 0:00:08]} 31. Qxg6 {[%emt 0:00:10]} hxg6 {[%emt 0:00:01]} 32. Re1 {[%emt 0:00:02]} Rh8 {[%emt 0:00:00]} 33. h5 {[%emt 0:01:14]} gxh5 {[%emt 0:00:01]} 34. Nh2 {[%emt 0:00:01]} f3 {[%emt 0:00:35]} 35. Nxf3 {[%emt 0:01:37]} hxg4 {[%emt 0:00:00]} 36. Ng5 {[%emt 0:00:02]} Rh5 {[%emt 0:00:25]} 37. Nf7 {[%emt 0:00:15]} Re7 {[%emt 0:00:12]} 38. Rf1 {[%emt 0:00:42]} g3 {[%emt 0:00:02]} 39. Nd6 {[%emt 0:00:02]} Bxe5 {[%emt 0:00:20]} 40. Bxe5 {[%emt 0:00:20]} Rhxe5 {[%emt 0:00:06]} 41. Rf8+ {[%emt 0:00:05]} Kc7 {[%emt 0:00:01]} 42. Rg8 {[%emt 0:00:01]} Rxc5 {[%emt 0:00:27]} 43. Nc4 {[%emt 0:00:15]} Re2+ {[%emt 0:00:04]} 44. Kc3 {[%emt 0:00:11]} g2 {[%emt 0:00:12]} 45. a4 {[%emt 0:00:24]} Rd5 {[%emt 0:00:07]} 46. Rg7+ {[%emt 0:00:20]} Kd8 {[%emt 0:00:02]} 47. Nb2 {[%emt 0:00:22]} Rdd2 {[%emt 0:00:11]} 48. Nd3 {[%emt 0:00:14]} Rd1 {[%emt 0:00:11]} 49. Nf4 {[%emt 0:00:03]} Re3+ {[%emt 0:00:00]} 0-1

[Event "FIDE Open World Rapid 2024"]
[Site "New York"]
[Date "2024.12.27"]
[Round "6.34"]
[White "Nesterov, Arseniy"]
[Black "Martirosyan, Haik M."]
[Result "1-0"]
[ECO "D02"]
[WhiteElo "2599"]
[BlackElo "2656"]
[Annotator "ChessBase"]
[PlyCount "135"]
[EventDate "2024.12.14"]
[EventType "swiss"]
[EventCountry "USA"]
[SourceTitle "playchess.com"]
[Source "ChessBase"]
[SourceQuality "1"]
[TimeControl "900+10"]

1. Nf3 {[%emt 0:00:56]} d5 {[%emt 0:00:05]} 2. g3 {[%emt 0:00:03]} Nc6 {[%emt 0:00:23]} 3. d4 {[%emt 0:00:02]} Bf5 {[%emt 0:00:02]} 4. Bg2 {[%emt 0:00:14]} Nb4 {[%emt 0:00:04]} 5. Na3 {[%emt 0:00:02]} e6 {[%emt 0:00:02]} 6. O-O {[%emt 0:01:42]} Be7 {[%emt 0:00:07]} 7. c3 {[%emt 0:00:02]} Nc6 {[%emt 0:00:04]} 8. Qa4 {[%emt 0:00:02]} Qd7 {[%emt 0:01:47]} 9. Bf4 {[%emt 0:02:37]} Nf6 {[%emt 0:02:10]} 10. Nb5 {[%emt 0:02:45]} Rc8 {[%emt 0:01:43]} 11. c4 {[%emt 0:00:26]} a6 {[%emt 0:02:11]} 12. Nc3 {[%emt 0:02:57]} dxc4 {[%emt 0:01:55]} 13. Qxc4 {[%emt 0:00:01]} O-O {[%emt 0:00:51]} 14. Ne5 {[%emt 0:01:36]} Qxd4 {[%emt 0:01:08]} 15. Qxd4 {[%emt 0:00:09]} Nxd4 {[%emt 0:00:02]} 16. Rad1 {[%emt 0:01:28]} Nc6 {[%emt 0:03:04]} 17. Bxc6 {[%emt 0:01:28]} bxc6 {[%emt 0:00:01]} 18. Nxc6 {[%emt 0:00:01]} Rfe8 {[%emt 0:00:28]} 19. f3 {[%emt 0:00:42]} Bc5+ {[%emt 0:00:11]} 20. Kg2 {[%emt 0:00:01]} Nd5 {[%emt 0:00:57]} 21. Nxd5 {[%emt 0:00:51]} exd5 {[%emt 0:00:02]} 22. Rfe1 {[%emt 0:00:01]} Be6 {[%emt 0:01:02]} 23. b4 {[%emt 0:00:11]} Bf8 {[%emt 0:00:05]} 24. a3 {[%emt 0:00:01]} Bd7 {[%emt 0:00:10]} 25. Rc1 {[%emt 0:00:26]} Ra8 {[%emt 0:00:20]} 26. Nd4 {[%emt 0:00:20]} c6 {[%emt 0:00:19]} 27. Nxc6 {[%emt 0:00:07]} Rac8 {[%emt 0:00:05]} 28. Nd4 {[%emt 0:00:07]} Rc4 {[%emt 0:00:08]} 29. Rxc4 {[%emt 0:00:20]} dxc4 {[%emt 0:00:01]} 30. Rc1 {[%emt 0:00:09]} Rc8 {[%emt 0:00:00]} 31. Bd2 {[%emt 0:00:09]} Be7 {[%emt 0:00:14]} 32. Bc3 {[%emt 0:00:03]} Bg5 {[%emt 0:00:09]} 33. f4 {[%emt 0:00:12]} Be7 {[%emt 0:00:06]} 34. e4 {[%emt 0:00:05]} g6 {[%emt 0:00:01]} 35. Rd1 {[%emt 0:00:17]} Kf8 {[%emt 0:00:21]} 36. Rd2 {[%emt 0:00:20]} Ke8 {[%emt 0:00:04]} 37. Kf2 {[%emt 0:00:02]} Bd8 {[%emt 0:00:05]} 38. Ne2 {[%emt 0:00:18]} Bb6+ {[%emt 0:00:20]} 39. Bd4 {[%emt 0:00:12]} c3 {[%emt 0:00:12]} 40. Rc2 {[%emt 0:00:00]} Ba4 {[%emt 0:00:12]} 41. Rc1 {[%emt 0:00:01]} Bxd4+ {[%emt 0:00:04]} 42. Nxd4 {[%emt 0:00:03]} c2 {[%emt 0:00:20]} 43. Ke3 {[%emt 0:00:07]} Ke7 {[%emt 0:00:24]} 44. Kd2 {[%emt 0:00:18]} Rd8 {[%emt 0:00:03]} 45. Kc3 {[%emt 0:00:00]} Rc8+ {[%emt 0:00:00]} 46. Kb2 {[%emt 0:00:23]} Rd8 {[%emt 0:00:10]} 47. Nb3 {[%emt 0:00:12]} Bxb3 {[%emt 0:00:36]} 48. Kxb3 {[%emt 0:00:01]} Rd3+ {[%emt 0:00:03]} 49. Kb2 {[%emt 0:00:03]} Re3 {[%emt 0:00:11]} 50. e5 {[%emt 0:00:01]} g5 {[%emt 0:00:04]} 51. Rxc2 {[%emt 0:00:34]} gxf4 {[%emt 0:00:02]} 52. gxf4 {[%emt 0:00:01]} Kd7 {[%emt 0:00:08]} 53. Rd2+ {[%emt 0:00:23]} Kc6 {[%emt 0:00:03]} 54. a4 {[%emt 0:00:11]} Re4 {[%emt 0:00:03]} 55. Rd6+ {[%emt 0:00:07]} Kb7 {[%emt 0:00:01]} 56. Kc3 {[%emt 0:00:17]} Rxf4 {[%emt 0:00:03]} 57. Rf6 {[%emt 0:00:02]} Re4 {[%emt 0:00:01]} 58. Rxf7+ {[%emt 0:00:01]} Kc6 {[%emt 0:00:05]} 59. Rxh7 {[%emt 0:00:08]} Rxe5 {[%emt 0:00:09]} 60. Rh6+ {[%emt 0:00:02]} Kb7 {[%emt 0:00:01]} 61. h4 {[%emt 0:00:24]} Re4 {[%emt 0:00:08]} 62. a5 {[%emt 0:00:11]} Rg4 {[%emt 0:00:28]} 63. h5 {[%emt 0:00:01]} Ka7 {[%emt 0:00:00]} 64. Rh7+ {[%emt 0:00:08]} Kb8 {[%emt 0:00:02]} 65. Rd7 {[%emt 0:00:36]} Rg3+ {[%emt 0:00:26]} 66. Kc4 {[%emt 0:00:03]} Rh3 {[%emt 0:00:26]} 67. Rd5 {[%emt 0:00:02]} Kc7 {[%emt 0:00:08]} 68. b5 {[%emt 0:00:04]} 1-0

[Event "FIDE Open World Rapid 2024"]
[Site "New York"]
[Date "2024.12.27"]
[Round "6.34"]
[White "Saraci, Nderim"]
[Black "Kvaloy, Aksel Bu"]
[Result "1-0"]
[ECO "A13"]
[WhiteElo "2431"]
[BlackElo "2490"]
[Annotator "ChessBase"]
[PlyCount "113"]
[EventDate "2024.12.14"]
[EventType "swiss"]
[EventCountry "USA"]
[SourceTitle "playchess.com"]
[Source "ChessBase"]
[SourceQuality "1"]
[TimeControl "900+10"]

1. Nf3 {[%emt 0:00:03]} d5 {[%emt 0:00:04]} 2. b3 {[%emt 0:00:10]} Nf6 {[%emt 0:00:49]} 3. Bb2 {[%emt 0:00:03]} e6 {[%emt 0:00:27]} 4. c4 {[%emt 0:00:09]} b6 {[%emt 0:00:29]} 5. g3 {[%emt 0:01:13]} Bb7 {[%emt 0:00:12]} 6. Bg2 {[%emt 0:00:03]} Nbd7 {[%emt 0:00:12]} 7. O-O {[%emt 0:00:07]} Bd6 {[%emt 0:00:25]} 8. Nc3 {[%emt 0:01:23]} a6 {[%emt 0:00:07]} 9. d3 {[%emt 0:01:16]} O-O {[%emt 0:00:17]} 10. e3 {[%emt 0:02:23]} Re8 {[%emt 0:00:22]} 11. Qe2 {[%emt 0:00:05]} Qe7 {[%emt 0:02:17]} 12. Rac1 {[%emt 0:00:23]} Ba3 {[%emt 0:01:36]} 13. Bxa3 {[%emt 0:00:18]} Qxa3 {[%emt 0:00:03]} 14. d4 {[%emt 0:01:49]} Qe7 {[%emt 0:02:36]} 15. Ne5 {[%emt 0:01:25]} Rad8 {[%emt 0:01:47]} 16. Nxd7 {[%emt 0:02:06]} Qxd7 {[%emt 0:00:14]} 17. b4 {[%emt 0:00:29]} h6 {[%emt 0:01:49]} 18. Rc2 {[%emt 0:00:21]} Qe7 {[%emt 0:00:50]} 19. a3 {[%emt 0:00:43]} c6 {[%emt 0:00:48]} 20. c5 {[%emt 0:02:21]} bxc5 {[%emt 0:00:17]} 21. bxc5 {[%emt 0:00:07]} e5 {[%emt 0:00:01]} 22. Rb2 {[%emt 0:00:38]} Bc8 {[%emt 0:00:24]} 23. Qd2 {[%emt 0:00:08]} h5 {[%emt 0:00:25]} 24. Rb6 {[%emt 0:00:14]} Qc7 {[%emt 0:00:08]} 25. Na2 {[%emt 0:00:24]} exd4 {[%emt 0:01:24]} 26. exd4 {[%emt 0:00:04]} Ne4 {[%emt 0:00:01]} 27. Qc1 {[%emt 0:00:19]} a5 {[%emt 0:00:18]} 28. h4 {[%emt 0:00:13]} Bf5 {[%emt 0:00:29]} 29. Nc3 {[%emt 0:00:19]} Re7 {[%emt 0:00:31]} 30. Ne2 {[%emt 0:00:26]} Rde8 {[%emt 0:00:10]} 31. Nf4 {[%emt 0:00:03]} g6 {[%emt 0:00:10]} 32. Qb2 {[%emt 0:00:11]} g5 {[%emt 0:00:29]} 33. Nxh5 {[%emt 0:00:02]} Bg6 {[%emt 0:00:07]} 34. Bxe4 {[%emt 0:00:14]} Bxh5 {[%emt 0:00:02]} 35. Bg2 {[%emt 0:00:08]} gxh4 {[%emt 0:00:03]} 36. Qd2 {[%emt 0:00:15]} hxg3 {[%emt 0:00:15]} 37. Qg5+ {[%emt 0:00:07]} Bg6 {[%emt 0:00:01]} 38. Qxg3 {[%emt 0:00:20]} Qxg3 {[%emt 0:00:32]} 39. fxg3 {[%emt 0:00:01]} Re3 {[%emt 0:00:02]} 40. Rxc6 {[%emt 0:00:18]} Rxg3 {[%emt 0:00:02]} 41. Kf2 {[%emt 0:00:08]} Rg5 {[%emt 0:00:10]} 42. Rd6 {[%emt 0:00:17]} Bh5 {[%emt 0:00:11]} 43. Kg1 {[%emt 0:00:14]} Re2 {[%emt 0:00:25]} 44. Rf2 {[%emt 0:00:03]} Re1+ {[%emt 0:00:01]} 45. Kh2 {[%emt 0:00:03]} Kg7 {[%emt 0:00:22]} 46. Rxd5 {[%emt 0:00:10]} Rxd5 {[%emt 0:00:12]} 47. Bxd5 {[%emt 0:00:01]} Rc1 {[%emt 0:00:08]} 48. c6 {[%emt 0:00:10]} Bg6 {[%emt 0:00:05]} 49. Bg2 {[%emt 0:00:11]} Kf8 {[%emt 0:00:04]} 50. Re2 {[%emt 0:00:11]} Bd3 {[%emt 0:00:23]} 51. Re5 {[%emt 0:00:12]} f6 {[%emt 0:00:06]} 52. Re3 {[%emt 0:00:23]} Bc4 {[%emt 0:00:01]} 53. d5 {[%emt 0:00:05]} Rc2 {[%emt 0:00:01]} 54. d6 {[%emt 0:00:14]} Bf1 {[%emt 0:00:32]} 55. Kg1 {[%emt 0:00:18]} Bxg2 {[%emt 0:00:08]} 56. d7 {[%emt 0:00:02]} Rd2 {[%emt 0:00:03]} 57. c7 {[%emt 0:00:08]} 1-0

[Event "FIDE Open World Rapid 2024"]
[Site "New York"]
[Date "2024.12.27"]
[Round "6.35"]
[White "Donchenko, Alexander"]
[Black "Bai, Adelard"]
[Result "1-0"]
[ECO "A17"]
[WhiteElo "2618"]
[BlackElo "2393"]
[Annotator "ChessBase"]
[PlyCount "69"]
[EventDate "2024.12.14"]
[EventType "swiss"]
[EventCountry "USA"]
[SourceTitle "playchess.com"]
[Source "ChessBase"]
[SourceQuality "1"]
[TimeControl "900+10"]

1. Nf3 {[%emt 0:00:02]} Nf6 {[%emt 0:00:01]} 2. c4 {[%emt 0:00:02]} e6 {[%emt 0:00:02]} 3. Nc3 {[%emt 0:00:03]} Bb4 {[%emt 0:00:02]} 4. Qc2 {[%emt 0:00:03]} O-O {[%emt 0:00:03]} 5. e4 {[%emt 0:00:03]} d6 {[%emt 0:01:09]} 6. a3 {[%emt 0:00:06]} Bxc3 {[%emt 0:00:09]} 7. bxc3 {[%emt 0:00:02]} e5 {[%emt 0:00:47]} 8. Be2 {[%emt 0:00:03]} c5 {[%emt 0:01:58]} 9. O-O {[%emt 0:01:38]} Bg4 {[%emt 0:02:22]} 10. h3 {[%emt 0:00:50]} Bh5 {[%emt 0:00:30]} 11. d3 {[%emt 0:00:32]} Nc6 {[%emt 0:01:22]} 12. g4 {[%emt 0:00:20]} Bg6 {[%emt 0:00:08]} 13. Nh4 {[%emt 0:00:02]} Ne8 {[%emt 0:03:28]} 14. Ng2 {[%emt 0:00:53]} Nc7 {[%emt 0:00:52]} 15. Rb1 {[%emt 0:01:08]} Rb8 {[%emt 0:00:19]} 16. f4 {[%emt 0:01:38]} f6 {[%emt 0:00:09]} 17. a4 {[%emt 0:01:01]} a6 {[%emt 0:00:54]} 18. f5 {[%emt 0:02:32]} Bf7 {[%emt 0:00:01]} 19. h4 {[%emt 0:00:02]} b5 {[%emt 0:01:08]} 20. g5 {[%emt 0:00:38]} b4 {[%emt 0:01:39]} 21. gxf6 {[%emt 0:01:25]} gxf6 {[%emt 0:00:12]} 22. Bh6 {[%emt 0:00:03]} bxc3 {[%emt 0:00:54]} 23. Rxb8 {[%emt 0:00:23]} Qxb8 {[%emt 0:00:03]} 24. Qxc3 {[%emt 0:00:35]} Nd4 {[%emt 0:00:22]} 25. Qe1 {[%emt 0:00:17]} Kh8 {[%emt 0:00:34]} 26. Bxf8 {[%emt 0:00:03]} Qxf8 {[%emt 0:00:02]} 27. Bd1 {[%emt 0:00:11]} Qh6 {[%emt 0:00:15]} 28. Qe3 {[%emt 0:01:09]} Qxe3+ {[%emt 0:00:11]} 29. Nxe3 {[%emt 0:00:02]} h5 {[%emt 0:00:13]} 30. Nd5 {[%emt 0:00:54]} Nxd5 {[%emt 0:00:09]} 31. cxd5 {[%emt 0:00:04]} Be8 {[%emt 0:00:10]} 32. Rf2 {[%emt 0:00:05]} Kg7 {[%emt 0:00:11]} 33. Rb2 {[%emt 0:00:02]} Kf8 {[%emt 0:00:07]} 34. Rb6 {[%emt 0:00:07]} Ke7 {[%emt 0:00:12]} 35. Rxa6 {[%emt 0:00:04]} 1-0

[Event "FIDE Open World Rapid 2024"]
[Site "New York"]
[Date "2024.12.27"]
[Round "6.35"]
[White "Urazayev, Arystanbek"]
[Black "Manon, Reja Neer"]
[Result "1/2-1/2"]
[ECO "D03"]
[WhiteElo "2470"]
[BlackElo "2429"]
[Annotator "ChessBase"]
[PlyCount "100"]
[EventDate "2024.12.14"]
[EventType "swiss"]
[EventCountry "USA"]
[SourceTitle "playchess.com"]
[Source "ChessBase"]
[SourceQuality "1"]
[TimeControl "900+10"]

1. d4 Nf6 {[%emt 0:00:04]} 2. Nf3 {[%emt 0:00:04]} e6 {[%emt 0:00:06]} 3. Bg5 {[%emt 0:00:03]} d5 {[%emt 0:00:55]} 4. Nbd2 {[%emt 0:00:02]} Be7 {[%emt 0:00:19]} 5. e3 {[%emt 0:00:02]} Nbd7 {[%emt 0:00:20]} 6. Bd3 {[%emt 0:00:04]} c5 {[%emt 0:00:18]} 7. c3 {[%emt 0:00:03]} b6 {[%emt 0:00:48]} 8. Ne5 {[%emt 0:01:19]} Nxe5 {[%emt 0:01:45]} 9. dxe5 {[%emt 0:00:02]} Nd7 {[%emt 0:00:00]} 10. Bxe7 {[%emt 0:00:04]} Qxe7 {[%emt 0:00:01]} 11. f4 {[%emt 0:00:02]} O-O {[%emt 0:01:22]} 12. Qh5 {[%emt 0:00:07]} g6 {[%emt 0:00:46]} 13. Qh6 {[%emt 0:00:03]} f6 {[%emt 0:00:28]} 14. Nf3 {[%emt 0:01:55]} Qg7 {[%emt 0:06:06]} 15. Qxg7+ {[%emt 0:00:03]} Kxg7 {[%emt 0:00:00]} 16. exf6+ {[%emt 0:00:01]} Rxf6 {[%emt 0:00:19]} 17. Bb5 {[%emt 0:01:18]} Nf8 {[%emt 0:00:01]} 18. O-O-O {[%emt 0:01:40]} a6 {[%emt 0:01:10]} 19. Be2 {[%emt 0:01:25]} Bb7 {[%emt 0:00:48]} 20. Ne5 {[%emt 0:00:46]} Rd8 {[%emt 0:00:10]} 21. Bf3 {[%emt 0:00:16]} Nd7 {[%emt 0:00:37]} 22. Ng4 {[%emt 0:00:47]} Rff8 {[%emt 0:00:06]} 23. h4 {[%emt 0:00:55]} Nf6 {[%emt 0:02:01]} 24. Ne5 {[%emt 0:00:15]} Nd7 {[%emt 0:00:02]} 25. Nxd7 {[%emt 0:01:20]} Rxd7 {[%emt 0:00:01]} 26. h5 {[%emt 0:00:01]} Re8 {[%emt 0:00:39]} 27. Rh4 {[%emt 0:00:59]} e5 {[%emt 0:00:12]} 28. hxg6 {[%emt 0:00:02]} hxg6 {[%emt 0:00:02]} 29. Rdh1 {[%emt 0:00:03]} Kf6 {[%emt 0:00:08]} 30. Rh6 {[%emt 0:03:05]} exf4 {[%emt 0:00:15]} 31. exf4 {[%emt 0:00:05]} d4 {[%emt 0:00:08]} 32. Bxb7 {[%emt 0:02:01]} Rxb7 {[%emt 0:00:01]} 33. g4 {[%emt 0:00:05]} Re4 {[%emt 0:00:28]} 34. Rf1 {[%emt 0:00:26]} Kg7 {[%emt 0:00:07]} 35. g5 {[%emt 0:00:19]} Rf7 {[%emt 0:00:11]} 36. f5 {[%emt 0:00:14]} gxf5 {[%emt 0:00:11]} 37. cxd4 {[%emt 0:00:44]} cxd4 {[%emt 0:00:10]} 38. Kd2 {[%emt 0:00:01]} f4 {[%emt 0:00:09]} 39. Rxb6 {[%emt 0:00:05]} f3 {[%emt 0:00:08]} 40. Kd3 {[%emt 0:00:16]} Rg4 {[%emt 0:00:15]} 41. Rf6 {[%emt 0:00:04]} Rxf6 {[%emt 0:00:06]} 42. gxf6+ {[%emt 0:00:01]} Kxf6 {[%emt 0:00:01]} 43. Rxf3+ {[%emt 0:00:02]} Ke5 {[%emt 0:00:03]} 44. Rh3 {[%emt 0:00:03]} Kd5 {[%emt 0:00:20]} 45. Rh5+ {[%emt 0:00:08]} Kc6 {[%emt 0:00:07]} 46. b4 {[%emt 0:00:27]} Rg3+ {[%emt 0:00:16]} 47. Kxd4 {[%emt 0:00:09]} Ra3 {[%emt 0:00:02]} 48. Rh2 {[%emt 0:00:37]} Kb5 {[%emt 0:00:12]} 49. Rh8 {[%emt 0:00:15]} Rxa2 {[%emt 0:00:19]} 50. Rb8+ {[%emt 0:00:05]} Kc6 {[%emt 0:00:14]} 1/2-1/2